fUST/lending_fUST_20260111
["ID","MTS","AMOUNT","RATE_DAILY","PERIOD"]
[401271220,1768087845600,-172.78749649,0.00036711,14]
[401271221,1768087845610,-151.0,0.00036712,31]
[401271222,1768087845619,-517.57408613,0.00036712,30]
[401271223,1768087845629,-510.26854716,0.00036712,30]
[401271224,1768087845638,-502.13581752,0.00036712,30]
[401271225,1768087845647,-508.72813219,0.00036712,30]
[401271226,1768087845656,-503.58612392,0.00036712,30]
[401271227,1768087845666,-504.58187361,0.00036712,30]
[401271228,1768087845675,-500.0,0.00036712,30]
[401271229,1768087845684,-503.30308502,0.00036712,30]
[401271230,1768087845694,-500.0,0.00036712,30]
[401271231,1768087845703,-607.40648212,0.00036712,30]
[401271232,1768087845712,-564.76418067,0.00036712,30]
[401271233,1768087845722,-500.0,0.00036712,30]
[401271234,1768087845731,-508.39005732,0.00036712,30]
[401271235,1768087845740,-505.57663018,0.00036712,30]
[401271236,1768087845749,-500.0,0.00036712,30]
[401271237,1768087845759,-367.80015612,0.00036712,30]
[401271238,1768087845768,-492.31732817,0.00036712,30]
[401271239,1768087845777,-500.0,0.00036712,30]
[401271240,1768087845787,-198.99431886,0.00036712,30]
[401271241,1768087845796,-501.82493235,0.00036712,30]
[401271242,1768087845805,-558.93259769,0.00036712,30]
[401271243,1768087845814,-502.59646972,0.00036712,30]
[401271244,1768087845823,-507.63257534,0.00036712,30]
[401271245,1768087845835,-209.54240035,0.00036712,30]
[401271246,1768087845844,-504.16898208,0.00036712,30]
[401271247,1768087845853,-579.98652351,0.00036712,30]
[401271248,1768087845863,-500.0,0.00036712,30]
[401271249,1768087845872,-500.0,0.00036712,30]
[401271250,1768087845883,-500.0,0.00036712,30]
[401271251,1768087845894,-506.59663788,0.00036712,30]
[401271252,1768087845904,-504.05122282,0.00036712,30]
[401271253,1768087845915,-247.29893565,0.00036712,30]
[401271254,1768087845925,-467.71800202,0.00036712,30]
[401271255,1768087845936,-222.47283304,0.00036712,30]
[401271256,1768087845946,-238.58636082,0.00036712,30]
[401271257,1768087845956,-500.0,0.00036712,30]
[401271258,1768087845965,-167.71962131,0.00036712,30]
[401271259,1768087845975,-500.0,0.00036712,30]
[401271260,1768087845984,-516.29475273,0.00036712,30]
[401271261,1768087845994,-288.16366655,0.00036712,30]
[401271262,1768087846003,-570.97351923,0.00036712,30]
[401271263,1768087846012,-508.89286764,0.00036712,30]
[401271264,1768087846023,-358.64493723,0.00036712,30]
[401271265,1768087846033,-521.57977435,0.00036712,30]
[401271267,1768087846042,-500.0,0.00036712,30]
[401271268,1768087846052,-500.66595312,0.00036712,30]
[401271269,1768087846063,-500.0,0.00036712,30]
[401271270,1768087846073,-502.74272477,0.00036712,30]
[401271271,1768087846083,-500.0,0.00036712,30]
[401271272,1768087846092,-540.05543538,0.00036712,30]
[401271273,1768087846104,-497.82020642,0.00036712,30]
[401271274,1768087846114,-530.10481724,0.00036712,30]
[401271275,1768087846123,-527.48006383,0.00036712,30]
[401271276,1768087846133,-600.27321135,0.00036712,30]
[401271277,1768087846142,-522.13898206,0.00036712,30]
[401271278,1768087846152,-603.41244576,0.00036712,30]
[401271279,1768087846161,-535.19163838,0.00036712,30]
[401271280,1768087846171,-259.2551717,0.00036712,30]
[401271281,1768087846180,-536.12714614,0.00036712,30]
[401271282,1768087846189,-524.56766905,0.00036712,30]
[401271283,1768087846199,-507.03681344,0.00036712,30]
[401271284,1768087846209,-501.97462233,0.00036712,30]
[401271285,1768087846218,-500.0,0.00036712,30]
[401271286,1768087846227,-500.0,0.00036712,30]
[401271287,1768087846236,-500.0,0.00036712,30]
[401271288,1768087846246,-500.0,0.00036712,30]
[401271289,1768087846255,-500.0,0.00036712,30]
[401271290,1768087846264,-500.0,0.00036712,30]
[401271291,1768087846273,-500.0,0.00036712,30]
[401271292,1768087846283,-500.0,0.00036712,30]
[401271293,1768087846292,-293.31572516,0.00036712,30]
[401271294,1768087846301,-516.10438767,0.00036712,30]
[401271295,1768087846311,-593.7873052,0.00036712,30]
[401271296,1768087846320,-502.69735229,0.00036712,30]
[401271297,1768087846329,-537.13184528,0.00036712,30]
[401271298,1768087846338,-508.9699297,0.00036712,30]
[401271299,1768087846347,-500.0,0.00036712,30]
[401271300,1768087846356,-500.0,0.00036712,30]
[401271301,1768087846366,-500.0,0.00036712,30]
[401271302,1768087846376,-500.0,0.00036712,30]
[401271303,1768087846385,-500.0,0.00036712,30]
[401271304,1768087846394,-500.0,0.00036712,30]
[401271305,1768087846403,-166.15880997,0.00036712,30]
[401271306,1768087846412,-503.08173337,0.00036712,30]
[401271307,1768087846421,-526.6387612,0.00036712,30]
[401271308,1768087846430,-532.51814572,0.00036712,30]
[401271309,1768087846439,-505.81690388,0.00036712,30]
[401271310,1768087846449,-500.0,0.00036712,30]
[401271311,1768087846458,-500.0,0.00036712,30]
[401271312,1768087846467,-500.0,0.00036712,30]
[401271313,1768087846476,-500.0,0.00036712,30]
[401271314,1768087846485,-500.0,0.00036712,30]
[401271315,1768087846494,-500.17912256,0.00036712,30]
[401271316,1768087846503,-500.0,0.00036712,30]
[401271317,1768087846512,-500.0,0.00036712,30]
[401271318,1768087846521,-500.0,0.00036712,30]
[401271319,1768087846530,-500.0,0.00036712,30]
[401271320,1768087846540,-500.0,0.00036712,30]
[401271321,1768087846550,-500.0,0.00036712,30]
[401271322,1768087846559,-500.0,0.00036712,30]
[401271323,1768087846568,-500.0,0.00036712,30]
[401271324,1768087846578,-500.0,0.00036712,30]
[401271325,1768087846588,-312.66110017,0.00036712,30]
[401271326,1768087846597,-505.62792653,0.00036712,30]
[401271327,1768087846607,-516.96434315,0.00036712,30]
[401271328,1768087846617,-500.47158025,0.00036712,30]
[401271329,1768087846628,-500.0,0.00036712,2]
[401271330,1768087846639,-500.0,0.00036712,2]
[401271331,1768087846649,-500.0,0.00036712,2]
[401271332,1768087846657,-500.0,0.00036712,2]
[401271333,1768087846669,-500.0,0.00036712,2]
[401271334,1768087846680,-500.0,0.00036712,2]
[401271335,1768087846690,-500.0,0.00036712,2]
[401271336,1768087846701,-500.0,0.00036712,2]
[401271337,1768087846713,-500.0,0.00036712,2]
[401271338,1768087846725,-500.0,0.00036712,2]
[401271339,1768087846735,-500.0,0.00036712,2]
[401271340,1768087846744,-500.0,0.00036712,2]
[401271341,1768087846755,-500.0,0.00036712,2]
[401271342,1768087846764,-500.0,0.00036712,2]
[401271343,1768087846775,-500.0,0.00036712,2]
[401271344,1768087846785,-500.0,0.00036712,2]
[401271345,1768087846794,-500.0,0.00036712,2]
[401271346,1768087846804,-623.16388011,0.00036712,2]
[401271347,1768087846813,-535.05587433,0.00036712,30]
[401271348,1768087846822,-514.03234991,0.00036712,30]
[401271349,1768087846835,-500.0,0.00036712,2]
[401271350,1768087846844,-500.0,0.00036712,2]
[401271351,1768087846857,-500.0,0.00036712,30]
[401271352,1768087846867,-265.85827817,0.00036712,30]
[401271353,1768087846877,-502.91233106,0.00036712,30]
[401271354,1768087846886,-506.86710627,0.00036712,30]
[401271355,1768087846895,-600.91842016,0.00036712,2]
[401271356,1768087846905,-500.0,0.00036712,30]
[401271357,1768087846915,-500.0,0.00036712,30]
[401271358,1768087846926,-500.0,0.00036712,30]
[401271359,1768087846935,-500.0,0.00036712,30]
[401271360,1768087846946,-500.0,0.00036712,30]
[401271361,1768087846956,-508.7194393,0.00036712,30]
[401271362,1768087846965,-255.59781184,0.00036712,30]
[401271363,1768087846975,-502.70071408,0.00036712,30]
[401271364,1768087846984,-501.75806414,0.00036712,30]
[401271365,1768087846994,-519.14998941,0.00036712,30]
[401271366,1768087847003,-502.15565883,0.00036712,30]
[401271367,1768087847012,-508.66794221,0.00036712,30]
[401271368,1768087847022,-501.89111587,0.00036712,30]
[401271369,1768087847031,-313.8297347,0.00036712,30]
[401271370,1768087847040,-542.99461457,0.00036712,30]
[401271371,1768087847051,-500.0,0.00036712,30]
[401271372,1768087847062,-502.66091755,0.00036712,30]
[401271373,1768087847071,-507.80127239,0.00036712,30]
[401271374,1768087847081,-567.48725532,0.00036712,30]
[401271375,1768087847090,-502.5337113,0.00036712,30]
[401271376,1768087847100,-503.06777824,0.00036712,30]
[401271377,1768087847109,-151.0,0.00036712,28]
[401271378,1768087847119,-151.0,0.00036712,28]
[401271379,1768087847128,-526.00258127,0.00036712,30]
[401271380,1768087847138,-241.887947,0.00036712,28]
[401271381,1768087847147,-500.0,0.00036712,30]
[401271382,1768087847156,-514.56204005,0.00036712,30]
[401271383,1768087847166,-315.18853,0.00036712,31]
[401271384,1768087847175,-315.18853,0.00036712,31]
[401271385,1768087847184,-502.23705915,0.00036712,30]
[401271386,1768087847193,-315.18853,0.00036712,31]
[401271387,1768087847203,-315.18853,0.00036712,31]
[401271388,1768087847297,-498.14054854,0.00036712,30]
[401271389,1768087847306,-540.54333116,0.00036712,30]
[401271390,1768087847316,-315.18853,0.00036712,31]
[401271391,1768087847324,-315.18853,0.00036712,31]
[401271392,1768087847335,-500.0,0.00036712,2]
[401271393,1768087847344,-315.18853,0.00036712,31]
[401271394,1768087847354,-500.0,0.00036712,2]
[401271395,1768087847365,-503.2619597,0.00036712,30]
[401271396,1768087847374,-500.0,0.00036712,2]
[401271397,1768087847383,-315.18853,0.00036712,31]
[401271398,1768087847393,-500.0,0.00036712,2]
[401271399,1768087847403,-500.0,0.00036712,2]
[401271400,1768087847412,-500.0,0.00036712,2]
[401271401,1768087847422,-500.0,0.00036712,2]
[401271402,1768087847431,-309.3542792,0.00036712,2]
[401271403,1768087847442,-508.03333953,0.00036712,30]
[401271404,1768087847451,-151.0,0.00036712,31]
[401271405,1768087847460,-151.0,0.00036712,31]
[401271406,1768087847470,-506.12528413,0.00036712,30]
[401271407,1768087847479,-500.0,0.00036712,30]
[401271408,1768087847490,-500.0,0.00036712,30]
[401271409,1768087847500,-500.0,0.00036712,30]
[401271410,1768087847511,-500.0,0.00036712,30]
[401271411,1768087847521,-500.0,0.00036712,30]
[401271412,1768087847531,-500.0,0.00036712,30]
[401271413,1768087847540,-500.0,0.00036712,30]
[401271414,1768087847550,-500.0,0.00036712,30]
[401271415,1768087847561,-500.0,0.00036712,30]
[401271416,1768087847571,-500.0,0.00036712,30]
[401271417,1768087847581,-431.8588478,0.00036712,30]
[401271418,1768087847600,-520.918343,0.00036712,30]
[401271419,1768087847615,-2479.36,0.00036712,30]
[401271420,1768087847625,-2479.36,0.00036712,30]
[401271421,1768087847637,-2479.36,0.00036712,30]
[401271422,1768087847648,-2479.36,0.00036712,30]
[401271423,1768087847659,-2479.36,0.00036712,30]
[401271424,1768087847668,-2479.36,0.00036712,30]
[401271425,1768087847679,-2479.36,0.00036712,30]
[401271426,1768087847688,-2479.36,0.00036712,30]
[401271427,1768087847698,-2479.36,0.00036712,30]
[401271428,1768087847708,-2479.36,0.00036712,30]
[401271429,1768087847718,-2479.36,0.00036712,30]
[401271430,1768087847728,-2479.36,0.00036712,30]
[401271431,1768087847738,-2479.36,0.00036712,30]
[401271432,1768087847749,-2479.36,0.00036712,30]
[401271433,1768087847759,-2479.36,0.00036712,30]
[401271434,1768087847768,-2479.36,0.00036712,30]
[401271435,1768087847778,-2479.36,0.00036712,30]
[401271436,1768087847788,-2479.36,0.00036712,30]
[401271437,1768087847799,-2479.36,0.00036712,30]
[401271438,1768087847809,-2479.36,0.00036712,30]
[401271439,1768087847819,-2479.36,0.00036712,30]
[401271440,1768087847830,-2479.36,0.00036712,30]
[401271441,1768087847846,-479.331389,0.00036712,31]
[401271442,1768087847856,-2479.36,0.00036712,30]
[401271443,1768087847866,-479.331389,0.00036712,31]
[401271444,1768087847875,-2479.42,0.00036712,30]
[401271445,1768087847886,-504.72849029,0.00036712,30]
[401271446,1768087847896,-500.0,0.00036712,30]
[401271447,1768087847905,-507.24783231,0.00036712,30]
[401271448,1768087847915,-337.12628961,0.00036712,30]
[401271449,1768087847924,-16880.2,0.00036712,30]
[401271450,1768087847934,-16880.2,0.00036712,30]
[401271451,1768087847943,-16880.2,0.00036712,30]
[401271452,1768087847954,-505.46772079,0.00036712,30]
[401271453,1768087847964,-16880.2,0.00036712,30]
[401271454,1768087847974,-16880.2,0.00036712,30]
[401271455,1768087847984,-16880.2,0.00036712,30]
[401271456,1768087847993,-16880.2,0.00036712,30]
[401271457,1768087848003,-16880.2,0.00036712,30]
[401271458,1768087848012,-16880.2,0.00036712,30]
[401271459,1768087848023,-16880.2,0.00036712,30]
[401271460,1768087848032,-16880.2,0.00036712,30]
[401271461,1768087848042,-16880.2,0.00036712,30]
[401271462,1768087848052,-16880.2,0.00036712,30]
[401271463,1768087848062,-16880.2,0.00036712,30]
[401271464,1768087848071,-16880.2,0.00036712,30]
[401271465,1768087848081,-16880.2,0.00036712,30]
[401271466,1768087848091,-16880.2,0.00036712,30]
[401271467,1768087848101,-16880.2,0.00036712,30]
[401271468,1768087848111,-16880.2,0.00036712,30]
[401271469,1768087848125,-4887.27,0.00036712,30]
[401271470,1768087848135,-16880.2,0.00036712,30]
[401271471,1768087848144,-4887.27,0.00036712,30]
[401271472,1768087848154,-16880.2,0.00036712,30]
[401271473,1768087848163,-4887.27,0.00036712,30]
[401271474,1768087848173,-501.02569077,0.00036712,30]
[401271475,1768087848183,-4887.27,0.00036712,30]
[401271476,1768087848192,-16880.2,0.00036712,30]
[401271477,1768087848202,-4887.27,0.00036712,30]
[401271478,1768087848212,-16880.2,0.00036712,30]
[401271479,1768087848222,-4887.27,0.00036712,30]
[401271480,1768087848232,-16880.27659401,0.00036712,30]
[401271481,1768087848242,-4887.27,0.00036712,30]
[401271482,1768087848251,-4887.27,0.00036712,30]
[401271483,1768087848261,-4887.27,0.00036712,30]
[401271484,1768087848271,-4887.27,0.00036712,30]
[401271485,1768087848281,-4887.27,0.00036712,30]
[401271486,1768087848290,-4887.27,0.00036712,30]
[401271487,1768087848300,-4887.27,0.00036712,30]
[401271488,1768087848310,-4887.27,0.00036712,30]
[401271489,1768087848320,-514.50960578,0.00036712,30]
[401271490,1768087848331,-4887.27,0.00036712,30]
[401271491,1768087848341,-4887.27,0.00036712,30]
[401271492,1768087848350,-4887.27,0.00036712,30]
[401271493,1768087848361,-4887.27,0.00036712,30]
[401271494,1768087848373,-4887.27,0.00036712,30]
[401271495,1768087848383,-508.05085412,0.00036712,30]
[401271496,1768087848394,-4887.27,0.00036712,30]
[401271497,1768087848404,-4887.27,0.00036712,30]
[401271498,1768087848415,-4887.27,0.00036712,30]
[401271499,1768087848426,-4887.27,0.00036712,30]
[401271500,1768087848437,-4887.3,0.00036712,30]
[401271501,1768087848449,-609.31321311,0.00036712,30]
[401271502,1768087848460,-508.62032327,0.00036712,30]
[401271503,1768087848471,-151.895159,0.00036712,31]
[401271504,1768087848481,-500.0,0.00036712,30]
[401271505,1768087848492,-534.50551265,0.00036712,30]
[401271506,1768087848502,-151.895159,0.00036712,31]
[401271507,1768087848512,-151.895159,0.00036712,31]
[401271508,1768087848524,-151.895159,0.00036712,31]
[401271509,1768087848534,-510.91021208,0.00036712,30]
[401271510,1768087848544,-151.895159,0.00036712,31]
[401271511,1768087848555,-151.895159,0.00036712,31]
[401271512,1768087848565,-519.73496402,0.00036712,30]
[401271513,1768087848575,-151.895159,0.00036712,31]
[401271514,1768087848587,-151.895159,0.00036712,31]
[401271515,1768087848598,-548.84786937,0.00036712,30]
[401271516,1768087848609,-501.63141378,0.00036712,30]
[401271517,1768087848623,-502.73324908,0.00036712,30]
[401271518,1768087848633,-503.75250608,0.00036712,30]
[401271519,1768087848644,-2216.62,0.00036712,30]
[401271520,1768087848653,-2216.62,0.00036712,30]
[401271521,1768087848663,-2216.62,0.00036712,30]
[401271522,1768087848673,-2216.62,0.00036712,30]
[401271523,1768087848682,-2216.62,0.00036712,30]
[401271524,1768087848692,-2216.62,0.00036712,30]
[401271525,1768087848701,-2216.62,0.00036712,30]
[401271526,1768087848711,-530.64516971,0.00036712,30]
[401271527,1768087848720,-2216.62,0.00036712,30]
[401271528,1768087848729,-2216.62,0.00036712,30]
[401271529,1768087848739,-2216.62,0.00036712,30]
[401271530,1768087848748,-2216.62,0.00036712,30]
[401271531,1768087848757,-2216.62,0.00036712,30]
[401271532,1768087848767,-2216.62,0.00036712,30]
[401271533,1768087848776,-2216.62,0.00036712,30]
[401271534,1768087848785,-2216.62,0.00036712,30]
[401271535,1768087848795,-2216.62,0.00036712,30]
[401271536,1768087848804,-2216.62,0.00036712,30]
[401271537,1768087848814,-502.02662521,0.00036712,30]
[401271538,1768087848824,-2216.62,0.00036712,30]
[401271539,1768087848833,-2216.62,0.00036712,30]
[401271540,1768087848842,-2216.62,0.00036712,30]
[401271541,1768087848854,-2216.62,0.00036712,30]
[401271542,1768087848864,-2216.62,0.00036712,30]
[401271543,1768087848875,-2216.62,0.00036712,30]
[401271544,1768087848886,-2216.79,0.00036712,30]
[401271545,1768087848895,-424.5297913,0.00036712,30]
[401271546,1768087848903,-241.15003758,0.00036712,120]
[401271547,1768087848913,-516.27122304,0.00036712,30]
[401271548,1768087848923,-507.79933759,0.00036712,30]
[401271549,1768087848932,-500.0,0.00036712,30]
[401271550,1768087848942,-500.0,0.00036712,30]
[401271551,1768087848951,-500.0,0.00036712,30]
[401271552,1768087848962,-2224.36,0.00036712,30]
[401271553,1768087848974,-505.77209003,0.00036712,30]
[401271554,1768087848983,-2224.36,0.00036712,30]
[401271555,1768087848993,-26278.29,0.00036712,30]
[401271556,1768087849003,-2224.36,0.00036712,30]
[401271557,1768087849012,-26278.29,0.00036712,30]
[401271558,1768087849022,-2224.36,0.00036712,30]
[401271559,1768087849032,-26278.29,0.00036712,30]
[401271560,1768087849043,-2224.36,0.00036712,30]
[401271561,1768087849052,-26278.29,0.00036712,30]
[401271562,1768087849061,-2224.36,0.00036712,30]
[401271563,1768087849072,-26278.29,0.00036712,30]
[401271564,1768087849082,-2224.36,0.00036712,30]
[401271565,1768087849092,-26278.29,0.00036712,30]
[401271566,1768087849102,-2224.36,0.00036712,30]
[401271567,1768087849113,-26278.29,0.00036712,30]
[401271568,1768087849123,-2224.36,0.00036712,30]
[401271569,1768087849133,-26278.29,0.00036712,30]
[401271570,1768087849145,-2224.36,0.00036712,30]
[401271571,1768087849154,-26278.29,0.00036712,30]
[401271572,1768087849164,-2224.36,0.00036712,30]
[401271573,1768087849174,-26278.29,0.00036712,30]
[401271574,1768087849185,-2224.36,0.00036712,30]
[401271575,1768087849195,-26278.29,0.00036712,30]
[401271576,1768087849205,-2224.36,0.00036712,30]
[401271577,1768087849215,-26278.29,0.00036712,30]
[401271578,1768087849225,-2224.36,0.00036712,30]
[401271579,1768087849235,-26278.29,0.00036712,30]
[401271580,1768087849244,-2224.36,0.00036712,30]
[401271581,1768087849254,-26278.29,0.00036712,30]
[401271582,1768087849264,-2224.36,0.00036712,30]
[401271583,1768087849274,-26278.29,0.00036712,30]
[401271584,1768087849284,-2224.36,0.00036712,30]
[401271585,1768087849295,-26278.29,0.00036712,30]
[401271586,1768087849305,-26278.29,0.00036712,30]
[401271587,1768087849315,-26278.29,0.00036712,30]
[401271588,1768087849326,-2224.36,0.00036712,30]
[401271589,1768087849337,-26278.29,0.00036712,30]
[401271590,1768087849349,-2224.36,0.00036712,30]
[401271591,1768087849360,-26278.29,0.00036712,30]
[401271592,1768087849369,-2224.36,0.00036712,30]
[401271593,1768087849379,-26278.29,0.00036712,30]
[401271594,1768087849389,-2224.36,0.00036712,30]
[401271595,1768087849400,-26278.29,0.00036712,30]
[401271596,1768087849410,-2224.36,0.00036712,30]
[401271597,1768087849422,-26278.29,0.00036712,30]
[401271598,1768087849433,-2224.36,0.00036712,30]
[401271599,1768087849445,-26278.45452659,0.00036712,30]
[401271600,1768087849455,-2224.53340001,0.00036712,30]
[401271601,1768087849464,-512.71326822,0.00036712,30]
[401271602,1768087849474,-513.85673291,0.00036712,30]
[401271603,1768087849484,-292.0,0.00036712,30]
[401271604,1768087849493,-151.0,0.00036712,31]
[401271605,1768087849502,-151.0,0.00036712,31]
[401271606,1768087849511,-546.28295531,0.00036712,30]
[401271607,1768087849521,-151.0,0.00036712,31]
[401271608,1768087849668,-151.0,0.00036712,31]
[401271609,1768087849678,-151.0,0.00036712,31]
[401271610,1768087849688,-155.211218,0.00036712,31]
[401271611,1768087849697,-507.12689469,0.00036712,30]
[401271612,1768087849706,-245.445707,0.00036712,31]
[401271613,1768087849717,-519.57890422,0.00036712,30]
[401271614,1768087849729,-245.445707,0.00036712,31]
[401271615,1768087849739,-245.445707,0.00036712,31]
[401271616,1768087849751,-245.445707,0.00036712,31]
[401271617,1768087849762,-500.0,0.00036712,30]
[401271618,1768087849772,-264.02782837,0.00036712,30]
[401271619,1768087849785,-245.445707,0.00036712,31]
[401271620,1768087849796,-245.445707,0.00036712,31]
[401271621,1768087849809,-194.07996615,0.00036712,30]
[401271622,1768087849819,-245.445707,0.00036712,31]
[401271623,1768087849829,-245.445707,0.00036712,31]
[401271624,1768087849838,-500.0,0.00036712,30]
[401271625,1768087849850,-514.99030424,0.00036712,30]
[401271626,1768087849860,-190.56820041,0.00036712,30]
[401271627,1768087849871,-154.250355,0.00036712,31]
[401271628,1768087849880,-5048.48,0.00036712,30]
[401271629,1768087849892,-5048.48,0.00036712,30]
[401271630,1768087849901,-5048.48,0.00036712,30]
[401271631,1768087849912,-5048.48,0.00036712,30]
[401271632,1768087849923,-5048.48,0.00036712,30]
[401271633,1768087849933,-5048.48,0.00036712,30]
[401271634,1768087849942,-5048.48,0.00036712,30]
[401271635,1768087849951,-5048.48,0.00036712,30]
[401271636,1768087849960,-5048.48,0.00036712,30]
[401271637,1768087849970,-5048.48,0.00036712,30]
[401271638,1768087849980,-5048.48,0.00036712,30]
[401271639,1768087849991,-5048.48,0.00036712,30]
[401271640,1768087850002,-5048.48,0.00036712,30]
[401271641,1768087850011,-5048.48,0.00036712,30]
[401271642,1768087850022,-5048.48,0.00036712,30]
[401271643,1768087850031,-5048.48,0.00036712,30]
[401271644,1768087850041,-5048.48,0.00036712,30]
[401271645,1768087850051,-5048.48,0.00036712,30]
[401271646,1768087850060,-5048.48,0.00036712,30]
[401271647,1768087850069,-5048.48,0.00036712,30]
[401271648,1768087850079,-5048.48,0.00036712,30]
[401271649,1768087850089,-5048.48,0.00036712,30]
[401271650,1768087850098,-5048.48,0.00036712,30]
[401271651,1768087850108,-5048.65,0.00036712,30]
[401271652,1768087850117,-281.2129169,0.00036712,30]
[401271653,1768087850127,-153.24451864,0.00036712,30]
[401271654,1768087850137,-545.21658131,0.00036712,30]
[401271655,1768087850147,-243.59740155,0.00036712,30]
[401271656,1768087850156,-962.73,0.00036712,30]
[401271657,1768087850166,-962.73,0.00036712,30]
[401271658,1768087850177,-962.73,0.00036712,30]
[401271659,1768087850187,-962.73,0.00036712,30]
[401271660,1768087850197,-962.73,0.00036712,30]
[401271661,1768087850206,-962.73,0.00036712,30]
[401271662,1768087850215,-962.73,0.00036712,30]
[401271663,1768087850225,-962.73,0.00036712,30]
[401271664,1768087850235,-462.60317284,0.00036712,30]
[401271665,1768087850244,-962.73,0.00036712,30]
[401271666,1768087850253,-962.73,0.00036712,30]
[401271667,1768087850263,-962.73,0.00036712,30]
[401271668,1768087850272,-962.73,0.00036712,30]
[401271669,1768087850282,-515.32820392,0.00036712,30]
[401271670,1768087850291,-962.73,0.00036712,30]
[401271671,1768087850300,-962.73,0.00036712,30]
[401271672,1768087850310,-962.73,0.00036712,30]
[401271673,1768087850320,-962.73,0.00036712,30]
[401271674,1768087850329,-962.73,0.00036712,30]
[401271675,1768087850338,-962.73,0.00036712,30]
[401271676,1768087850347,-962.73,0.00036712,30]
[401271677,1768087850357,-151.0,0.00036712,31]
[401271678,1768087850366,-962.73,0.00036712,30]
[401271679,1768087850375,-962.73,0.00036712,30]
[401271680,1768087850385,-151.0,0.00036712,31]
[401271681,1768087850394,-962.73,0.00036712,30]
[401271682,1768087850403,-962.73,0.00036712,30]
[401271683,1768087850413,-962.82753936,0.00036712,30]
[401271684,1768087850423,-253.53454304,0.00036712,30]
[401271685,1768087850437,-500.0,0.00036712,2]
[401271686,1768087850447,-500.0,0.00036712,2]
[401271687,1768087850456,-500.0,0.00036712,2]
[401271688,1768087850466,-500.0,0.00036712,2]
[401271689,1768087850475,-500.0,0.00036712,2]
[401271690,1768087850484,-500.0,0.00036712,2]
[401271691,1768087850494,-500.0,0.00036712,2]
[401271692,1768087850504,-500.0,0.00036712,2]
[401271693,1768087850514,-500.0,0.00036712,2]
[401271694,1768087850524,-500.0,0.00036712,2]
[401271695,1768087850534,-500.0,0.00036712,2]
[401271696,1768087850544,-537.6308808,0.00036712,30]
[401271697,1768087850554,-500.0,0.00036712,2]
[401271698,1768087850564,-500.0,0.00036712,2]
[401271699,1768087850574,-500.0,0.00036712,2]
[401271700,1768087850583,-500.0,0.00036712,2]
[401271701,1768087850593,-500.0,0.00036712,2]
[401271702,1768087850602,-502.32745149,0.00036712,2]
[401271703,1768087850612,-500.0,0.00036712,30]
[401271704,1768087850622,-95986.0676826,0.00036719,16]
[401271705,1768087850632,-728.0,0.00036745,11]
[401271706,1768087850641,-728.0,0.00036746,11]
[401271707,1768087850650,-728.0,0.0003675,11]
[401271708,1768087850659,-728.0,0.00036772,11]
[401271709,1768087850669,-728.0,0.00036772,11]
[401271710,1768087850678,-1112.0,0.00036863,2]
[401271711,1768087850687,-1112.0,0.00036864,3]
[401271712,1768087850696,-164.53513812,0.0003688,3]
[401271713,1768087850706,-320.96007917,0.00036902,2]
[401271714,1768087850715,-151.6053793,0.00036919,120]
[401271715,1768087850724,-290.04952508,0.00036919,2]
[401271716,1768087850733,-7461.59608894,0.00036919,2]
[401271717,1768087850742,-151.0,0.00036922,31]
[401271718,1768087850751,-277.124706,0.00036922,31]
[401271719,1768087850761,-1788.47035619,0.00036974,5]
[401271720,1768087850772,-580.4045221,0.00036979,2]